[Event "Titled Tuesday Blitz June 27 Early 2023"]
[White "Belov, Alexei"]
[Black "EdmundPlayer"]
[WhiteFideId "4128206"]
[WhiteElo "2542"]
[BlackElo "2314"]
[Result "1-0"]
[Round "10"]
[TimeControl "180+2"]
[Date "2023.06.27"]
[WhiteClock "0:01:30"]
[BlackClock "0:00:05"]
[Board "81"]

1. e4 {[%clk 0:03:00]}  e5 {[%clk 0:02:56]} 2. Nf3 {[%clk 0:03:00]}  Nc6 {[%clk 0:02:56]} 3. Bb5 {[%clk 0:03:00]}  a6 {[%clk 0:02:56]} 4. Ba4 {[%clk 0:03:00]}  Nf6 {[%clk 0:02:57]} 5. d4 {[%clk 0:03:01]}  b5 {[%clk 0:02:12]} 6. Bb3 {[%clk 0:03:00]}  exd4 {[%clk 0:01:48]} 7. e5 {[%clk 0:03:00]}  Ne4 {[%clk 0:01:47]} 8. Bd5 {[%clk 0:02:59]}  Nc5 {[%clk 0:01:40]} 9. Nxd4 {[%clk 0:02:58]}  Bb7 {[%clk 0:01:24]} 10. Qf3 {[%clk 0:02:56]}  Nxe5 {[%clk 0:01:18]} 11. Qe2 {[%clk 0:02:45]}  Bxd5 {[%clk 0:01:14]} 12. Qxe5+ {[%clk 0:02:40]}  Be6 {[%clk 0:01:12]} 13. O-O {[%clk 0:02:38]}  Be7 {[%clk 0:00:46]} 14. Qxg7 {[%clk 0:02:13]}  Bf6 {[%clk 0:00:44]} 15. Nxe6 {[%clk 0:02:11]}  Bxg7 {[%clk 0:00:23]} 16. Nxd8 {[%clk 0:02:11]}  Kxd8 {[%clk 0:00:23]} 17. Bg5+ {[%clk 0:02:04]}  Kc8 {[%clk 0:00:22]} 18. c3 {[%clk 0:02:02]}  d6 {[%clk 0:00:17]} 19. Nd2 {[%clk 0:01:59]}  Kd7 {[%clk 0:00:17]} 20. Nb3 {[%clk 0:01:58]}  Ne4 {[%clk 0:00:14]} 21. Be3 {[%clk 0:01:52]}  Rhe8 {[%clk 0:00:12]} 22. Rfe1 {[%clk 0:01:48]}  c5 {[%clk 0:00:11]} 23. Rad1 {[%clk 0:01:44]}  Kc6 {[%clk 0:00:10]} 24. Bf4 {[%clk 0:01:35]}  a5 {[%clk 0:00:09]} 25. f3 {[%clk 0:01:34]}  Nf6 {[%clk 0:00:07]} 26. Rxd6+ {[%clk 0:01:31]}  Kb7 {[%clk 0:00:08]} 27. Nxc5+ {[%clk 0:01:31]}  Ka7 {[%clk 0:00:05]} 28. Ra6# {[%clk 0:01:30]} 1-0


[Site "https://www.chess.com"]

[Event "Titled Tuesday Blitz June 27 Early 2023"]
[White "Eidelman, Gabriel"]
[Black "Zhu, Jiner"]
[WhiteFideId "30910544"]
[BlackFideId "8608059"]
[WhiteElo "2441"]
[BlackElo "2682"]
[Result "0-1"]
[Round "10"]
[TimeControl "180+2"]
[Date "2023.06.27"]
[WhiteClock "0:00:02"]
[BlackClock "0:00:54"]
[Board "82"]

1. Nf3 {[%clk 0:03:00]}  h6 {[%clk 0:03:00]} 2. e4 {[%clk 0:02:58]}  a6 {[%clk 0:03:01]} 3. d4 {[%clk 0:02:56]}  g6 {[%clk 0:02:56]} 4. Nc3 {[%clk 0:02:56]}  Bg7 {[%clk 0:02:57]} 5. Bc4 {[%clk 0:02:54]}  e6 {[%clk 0:02:57]} 6. a4 {[%clk 0:02:54]}  Ne7 {[%clk 0:02:58]} 7. O-O {[%clk 0:02:54]}  b6 {[%clk 0:02:58]} 8. Be3 {[%clk 0:02:49]}  Bb7 {[%clk 0:02:58]} 9. Qd2 {[%clk 0:02:49]}  d5 {[%clk 0:02:58]} 10. exd5 {[%clk 0:02:44]}  exd5 {[%clk 0:02:56]} 11. Bd3 {[%clk 0:02:45]}  Nbc6 {[%clk 0:02:55]} 12. Rfe1 {[%clk 0:02:37]}  g5 {[%clk 0:02:54]} 13. Ne2 {[%clk 0:02:23]}  Qd7 {[%clk 0:02:49]} 14. Ng3 {[%clk 0:02:20]}  f5 {[%clk 0:02:48]} 15. Nh5 {[%clk 0:02:12]}  O-O {[%clk 0:02:46]} 16. Bxg5 {[%clk 0:01:43]}  hxg5 {[%clk 0:02:40]} 17. Qxg5 {[%clk 0:01:42]}  Rf7 {[%clk 0:02:37]} 18. Ne5 {[%clk 0:01:16]}  Nxe5 {[%clk 0:02:29]} 19. Rxe5 {[%clk 0:01:16]}  Raf8 {[%clk 0:02:01]} 20. Rae1 {[%clk 0:01:05]}  Nc6 {[%clk 0:01:57]} 21. Re6 {[%clk 0:01:01]}  Nxd4 {[%clk 0:01:55]} 22. Rg6 {[%clk 0:00:58]}  c5 {[%clk 0:01:42]} 23. Nf4 {[%clk 0:00:34]}  Re8 {[%clk 0:01:36]} 24. Re3 {[%clk 0:00:17]}  Rxe3 {[%clk 0:01:11]} 25. fxe3 {[%clk 0:00:18]}  Nc6 {[%clk 0:01:11]} 26. Nh5 {[%clk 0:00:18]}  Ne5 {[%clk 0:01:01]} 27. Rxg7+ {[%clk 0:00:13]}  Rxg7 {[%clk 0:01:01]} 28. Nf6+ {[%clk 0:00:13]}  Kf7 {[%clk 0:01:00]} 29. Nxd7 {[%clk 0:00:08]}  Rxg5 {[%clk 0:00:59]} 30. Nxe5+ {[%clk 0:00:09]}  Ke6 {[%clk 0:00:56]} 31. Nf3 {[%clk 0:00:06]}  Rg4 {[%clk 0:00:55]} 32. b3 {[%clk 0:00:05]}  d4 {[%clk 0:00:54]} 33. exd4 {[%clk 0:00:02]}  Bxf3 {[%clk 0:00:54]} 0-1


[Site "https://www.chess.com"]

[Event "Titled Tuesday Blitz June 27 Early 2023"]
[White "Itkis, Boris"]
[Black "Khoroshev, Nikita"]
[WhiteFideId "1209167"]
[BlackFideId "14200287"]
[WhiteElo "2435"]
[BlackElo "2633"]
[Result "0-1"]
[Round "10"]
[TimeControl "180+2"]
[Date "2023.06.27"]
[WhiteClock "0:00:02"]
[BlackClock "0:00:22"]
[Board "84"]

1. c4 {[%clk 0:03:00]}  Nf6 {[%clk 0:02:28]} 2. Nf3 {[%clk 0:03:01]}  g6 {[%clk 0:02:27]} 3. g3 {[%clk 0:03:01]}  Bg7 {[%clk 0:02:27]} 4. Bg2 {[%clk 0:03:02]}  O-O {[%clk 0:02:27]} 5. d4 {[%clk 0:03:02]}  d6 {[%clk 0:02:27]} 6. O-O {[%clk 0:03:02]}  c6 {[%clk 0:02:28]} 7. b3 {[%clk 0:03:01]}  a5 {[%clk 0:02:26]} 8. a4 {[%clk 0:02:59]}  Na6 {[%clk 0:02:24]} 9. Bb2 {[%clk 0:02:59]}  Nb4 {[%clk 0:02:24]} 10. Nbd2 {[%clk 0:02:57]}  Bf5 {[%clk 0:02:24]} 11. Nh4 {[%clk 0:02:55]}  Bd7 {[%clk 0:02:19]} 12. e4 {[%clk 0:02:55]}  e5 {[%clk 0:02:14]} 13. dxe5 {[%clk 0:02:35]}  Ng4 {[%clk 0:02:14]} 14. Nhf3 {[%clk 0:02:08]}  Nxe5 {[%clk 0:02:05]} 15. Nxe5 {[%clk 0:02:07]}  Bxe5 {[%clk 0:02:00]} 16. Bxe5 {[%clk 0:02:07]}  dxe5 {[%clk 0:02:01]} 17. Nf3 {[%clk 0:02:07]}  f6 {[%clk 0:01:56]} 18. Qd6 {[%clk 0:02:03]}  Bg4 {[%clk 0:01:56]} 19. Qc5 {[%clk 0:01:46]}  Bxf3 {[%clk 0:01:45]} 20. Bxf3 {[%clk 0:01:45]}  Qd4 {[%clk 0:01:40]} 21. Qe7 {[%clk 0:01:25]}  Rf7 {[%clk 0:01:37]} 22. Qe6 {[%clk 0:01:23]}  Qc3 {[%clk 0:01:29]} 23. Bg4 {[%clk 0:01:12]}  h5 {[%clk 0:01:24]} 24. Bh3 {[%clk 0:01:10]}  Nc2 {[%clk 0:01:24]} 25. Rac1 {[%clk 0:01:07]}  Qb2 {[%clk 0:01:20]} 26. Qd6 {[%clk 0:00:35]}  Qd4 {[%clk 0:01:09]} 27. Qe6 {[%clk 0:00:29]}  Nb4 {[%clk 0:00:47]} 28. Rcd1 {[%clk 0:00:24]}  Nd3 {[%clk 0:00:46]} 29. Rd2 {[%clk 0:00:19]}  Qxe4 {[%clk 0:00:25]} 30. Bg2 {[%clk 0:00:18]}  Qd4 {[%clk 0:00:24]} 31. Rfd1 {[%clk 0:00:18]}  Nc5 {[%clk 0:00:25]} 32. Qh3 {[%clk 0:00:08]}  Qg4 {[%clk 0:00:24]} 33. Qxg4 {[%clk 0:00:08]}  hxg4 {[%clk 0:00:25]} 34. Rd6 {[%clk 0:00:07]}  Kg7 {[%clk 0:00:23]} 35. Be4 {[%clk 0:00:02]}  Nxe4 {[%clk 0:00:22]} 0-1


[Site "https://www.chess.com"]

[Event "Titled Tuesday Blitz June 27 Early 2023"]
[White "Chor, Kevin"]
[Black "Glavina, Pablo"]
[WhiteFideId "2090740"]
[BlackFideId "100234"]
[WhiteElo "2531"]
[BlackElo "2379"]
[Result "1-0"]
[Round "10"]
[TimeControl "180+2"]
[Date "2023.06.27"]
[WhiteClock "0:00:04"]
[BlackClock "0:00:00"]
[Board "87"]

1. e4 {[%clk 0:03:00]}  e5 {[%clk 0:03:00]} 2. Nf3 {[%clk 0:03:00]}  Nc6 {[%clk 0:03:00]} 3. Bb5 {[%clk 0:03:00]}  a6 {[%clk 0:03:00]} 4. Ba4 {[%clk 0:03:01]}  Nf6 {[%clk 0:03:00]} 5. O-O {[%clk 0:03:01]}  Bc5 {[%clk 0:03:00]} 6. c3 {[%clk 0:02:57]}  b5 {[%clk 0:02:58]} 7. Bc2 {[%clk 0:02:57]}  d6 {[%clk 0:02:58]} 8. d3 {[%clk 0:02:53]}  O-O {[%clk 0:02:55]} 9. Nbd2 {[%clk 0:02:53]}  h6 {[%clk 0:02:48]} 10. a4 {[%clk 0:02:52]}  Bg4 {[%clk 0:02:45]} 11. Re1 {[%clk 0:02:50]}  Ne7 {[%clk 0:02:25]} 12. Nf1 {[%clk 0:02:44]}  Ng6 {[%clk 0:02:21]} 13. h3 {[%clk 0:02:40]}  Bxf3 {[%clk 0:02:19]} 14. Qxf3 {[%clk 0:02:39]}  Re8 {[%clk 0:02:08]} 15. axb5 {[%clk 0:02:32]}  axb5 {[%clk 0:02:08]} 16. Rxa8 {[%clk 0:02:30]}  Qxa8 {[%clk 0:02:09]} 17. Bxh6 {[%clk 0:02:30]}  Qa2 {[%clk 0:02:06]} 18. Bc1 {[%clk 0:02:23]}  b4 {[%clk 0:02:04]} 19. cxb4 {[%clk 0:01:55]}  Bd4 {[%clk 0:01:53]} 20. Bg5 {[%clk 0:01:48]}  Nh7 {[%clk 0:01:47]} 21. Be3 {[%clk 0:01:45]}  Qxb2 {[%clk 0:01:42]} 22. Ba4 {[%clk 0:01:39]}  Rb8 {[%clk 0:01:31]} 23. Bd7 {[%clk 0:01:30]}  Qxb4 {[%clk 0:01:19]} 24. Rc1 {[%clk 0:01:30]}  c5 {[%clk 0:01:08]} 25. Ng3 {[%clk 0:01:25]}  Qa3 {[%clk 0:00:59]} 26. Rd1 {[%clk 0:01:17]}  Nf6 {[%clk 0:00:57]} 27. Bf5 {[%clk 0:01:15]}  Nh4 {[%clk 0:00:52]} 28. Qe2 {[%clk 0:01:13]}  Rb2 {[%clk 0:00:50]} 29. Qe1 {[%clk 0:01:05]}  Qa2 {[%clk 0:00:35]} 30. Bc8 {[%clk 0:00:51]}  Ng6 {[%clk 0:00:30]} 31. Nf5 {[%clk 0:00:47]}  Re2 {[%clk 0:00:22]} 32. Qf1 {[%clk 0:00:44]}  Bxe3 {[%clk 0:00:20]} 33. Nxe3 {[%clk 0:00:40]}  Nf4 {[%clk 0:00:20]} 34. Nf5 {[%clk 0:00:34]}  d5 {[%clk 0:00:19]} 35. Ng3 {[%clk 0:00:31]}  Rd2 {[%clk 0:00:16]} 36. Rb1 {[%clk 0:00:25]}  Nxd3 {[%clk 0:00:12]} 37. Rb8 {[%clk 0:00:22]}  Kh7 {[%clk 0:00:10]} 38. exd5 {[%clk 0:00:18]}  g6 {[%clk 0:00:06]} 39. Nh1 {[%clk 0:00:14]}  Ne4 {[%clk 0:00:05]} 40. f3 {[%clk 0:00:11]}  Ng5 {[%clk 0:00:02]} 41. d6 {[%clk 0:00:09]}  Nf4 {[%clk 0:00:03]} 42. Nf2 {[%clk 0:00:03]}  Rxf2 {[%clk 0:00:01]} 43. Qxf2 {[%clk 0:00:03]}  Nfxh3+ {[%clk 0:00:02]} 44. Bxh3 {[%clk 0:00:03]}  Nxh3+ {[%clk 0:00:03]} 45. gxh3 {[%clk 0:00:04]}  Qa1+ {[%clk 0:00:01]} 46. Kg2 {[%clk 0:00:04]}  Qc3 {[%clk 0:00:00]} 47. d7 {[%clk 0:00:04]} 1-0


[Site "https://www.chess.com"]

[Event "Titled Tuesday Blitz June 27 Early 2023"]
[White "Romero Ruscalleda, Josep"]
[Black "slidingknight2775"]
[WhiteFideId "2231859"]
[WhiteElo "2369"]
[BlackElo "2529"]
[Result "1/2-1/2"]
[Round "10"]
[TimeControl "180+2"]
[Date "2023.06.27"]
[WhiteClock "0:00:43"]
[BlackClock "0:00:08"]
[Board "88"]

1. e4 {[%clk 0:03:00]}  g6 {[%clk 0:02:58]} 2. d4 {[%clk 0:03:00]}  Bg7 {[%clk 0:02:58]} 3. Nc3 {[%clk 0:03:00]}  d6 {[%clk 0:02:57]} 4. g3 {[%clk 0:03:00]}  Nf6 {[%clk 0:02:55]} 5. Bg2 {[%clk 0:03:00]}  O-O {[%clk 0:02:55]} 6. Nge2 {[%clk 0:03:01]}  c5 {[%clk 0:02:50]} 7. O-O {[%clk 0:02:58]}  cxd4 {[%clk 0:02:50]} 8. Nxd4 {[%clk 0:02:57]}  Nc6 {[%clk 0:02:50]} 9. Be3 {[%clk 0:02:56]}  Bd7 {[%clk 0:02:50]} 10. Qd2 {[%clk 0:02:54]}  Nxd4 {[%clk 0:02:50]} 11. Bxd4 {[%clk 0:02:54]}  Bc6 {[%clk 0:02:50]} 12. Rfe1 {[%clk 0:02:51]}  Rc8 {[%clk 0:02:43]} 13. Rad1 {[%clk 0:02:50]}  a6 {[%clk 0:02:34]} 14. Nd5 {[%clk 0:02:43]}  Bxd5 {[%clk 0:02:21]} 15. exd5 {[%clk 0:02:41]}  Qc7 {[%clk 0:02:20]} 16. c3 {[%clk 0:02:39]}  Rfe8 {[%clk 0:02:19]} 17. Qf4 {[%clk 0:02:28]}  Nd7 {[%clk 0:02:04]} 18. Bxg7 {[%clk 0:02:24]}  Kxg7 {[%clk 0:02:05]} 19. h4 {[%clk 0:02:20]}  Nf6 {[%clk 0:02:01]} 20. Re2 {[%clk 0:02:11]}  Qc4 {[%clk 0:01:57]} 21. Qxc4 {[%clk 0:02:07]}  Rxc4 {[%clk 0:01:58]} 22. Rde1 {[%clk 0:02:07]}  Kf8 {[%clk 0:01:56]} 23. Re3 {[%clk 0:02:04]}  h5 {[%clk 0:01:52]} 24. b3 {[%clk 0:02:03]}  Rc7 {[%clk 0:01:51]} 25. c4 {[%clk 0:02:03]}  b5 {[%clk 0:01:49]} 26. Bf1 {[%clk 0:02:01]}  b4 {[%clk 0:01:47]} 27. Bd3 {[%clk 0:01:57]}  a5 {[%clk 0:01:45]} 28. f3 {[%clk 0:01:53]}  Nd7 {[%clk 0:01:41]} 29. Bc2 {[%clk 0:01:48]}  Nc5 {[%clk 0:01:39]} 30. Kf2 {[%clk 0:01:46]}  Kg7 {[%clk 0:01:31]} 31. g4 {[%clk 0:01:46]}  hxg4 {[%clk 0:01:29]} 32. fxg4 {[%clk 0:01:46]}  e5 {[%clk 0:01:27]} 33. dxe6 {[%clk 0:01:42]}  Rxe6 {[%clk 0:01:26]} 34. h5 {[%clk 0:01:38]}  gxh5 {[%clk 0:01:22]} 35. gxh5 {[%clk 0:01:37]}  Kh6 {[%clk 0:01:10]} 36. Bd1 {[%clk 0:01:17]}  Rce7 {[%clk 0:01:06]} 37. Rxe6+ {[%clk 0:01:12]}  fxe6 {[%clk 0:01:02]} 38. Rg1 {[%clk 0:01:09]}  Rg7 {[%clk 0:01:00]} 39. Rxg7 {[%clk 0:01:07]}  Kxg7 {[%clk 0:01:01]} 40. Bc2 {[%clk 0:01:05]}  Kh6 {[%clk 0:01:00]} 41. Bg6 {[%clk 0:01:05]}  a4 {[%clk 0:00:53]} 42. bxa4 {[%clk 0:01:02]}  Nxa4 {[%clk 0:00:53]} 43. Bf7 {[%clk 0:00:55]}  e5 {[%clk 0:00:23]} 44. Ke3 {[%clk 0:00:54]}  Nc3 {[%clk 0:00:23]} 45. Kd3 {[%clk 0:00:54]}  Nxa2 {[%clk 0:00:21]} 46. c5 {[%clk 0:00:54]}  Nc1+ {[%clk 0:00:16]} 47. Kd2 {[%clk 0:00:53]}  dxc5 {[%clk 0:00:13]} 48. Kxc1 {[%clk 0:00:53]}  e4 {[%clk 0:00:13]} 49. Kd2 {[%clk 0:00:53]}  b3 {[%clk 0:00:13]} 50. Ke3 {[%clk 0:00:44]}  c4 {[%clk 0:00:08]} 51. Bxc4 {[%clk 0:00:44]}  Kxh5 {[%clk 0:00:07]} 52. Bxb3 {[%clk 0:00:44]}  Kg5 {[%clk 0:00:08]} 53. Bd5 {[%clk 0:00:43]}  Kf6 {[%clk 0:00:08]} 54. Bxe4 {[%clk 0:00:43]} 1/2-1/2


[Site "https://www.chess.com"]

[Event "Titled Tuesday Blitz June 27 Early 2023"]
[White "Liu, Casper"]
[Black "Dishman, Stephen"]
[WhiteFideId "1454153"]
[BlackFideId "403024"]
[WhiteElo "2521"]
[BlackElo "2374"]
[Result "0-1"]
[Round "10"]
[TimeControl "180+2"]
[Date "2023.06.27"]
[WhiteClock "0:01:03"]
[BlackClock "0:00:17"]
[Board "89"]

1. e4 {[%clk 0:03:00]}  d6 {[%clk 0:02:59]} 2. d4 {[%clk 0:03:00]}  Nf6 {[%clk 0:03:00]} 3. Bd3 {[%clk 0:03:00]}  e5 {[%clk 0:03:00]} 4. dxe5 {[%clk 0:02:59]}  dxe5 {[%clk 0:03:00]} 5. Nf3 {[%clk 0:03:00]}  Bd6 {[%clk 0:02:58]} 6. O-O {[%clk 0:03:01]}  O-O {[%clk 0:02:57]} 7. b3 {[%clk 0:03:02]}  Bg4 {[%clk 0:02:53]} 8. h3 {[%clk 0:03:01]}  Bh5 {[%clk 0:02:52]} 9. Bb2 {[%clk 0:03:01]}  Nbd7 {[%clk 0:02:50]} 10. Nbd2 {[%clk 0:03:02]}  c6 {[%clk 0:02:31]} 11. Qe2 {[%clk 0:03:02]}  Qe7 {[%clk 0:02:29]} 12. Qe3 {[%clk 0:02:59]}  Bc5 {[%clk 0:02:14]} 13. Qg5 {[%clk 0:02:57]}  h6 {[%clk 0:02:12]} 14. Qg3 {[%clk 0:02:57]}  Rfe8 {[%clk 0:01:44]} 15. Nc4 {[%clk 0:02:56]}  Bxf3 {[%clk 0:01:40]} 16. Qxf3 {[%clk 0:02:55]}  b5 {[%clk 0:01:38]} 17. Ne3 {[%clk 0:02:55]}  g6 {[%clk 0:01:34]} 18. a4 {[%clk 0:02:54]}  a6 {[%clk 0:01:32]} 19. Qg3 {[%clk 0:02:34]}  Kh7 {[%clk 0:01:29]} 20. Kh1 {[%clk 0:02:30]}  Nh5 {[%clk 0:01:27]} 21. Qf3 {[%clk 0:02:23]}  Nf4 {[%clk 0:01:23]} 22. Ng4 {[%clk 0:02:19]}  Bd6 {[%clk 0:01:16]} 23. Kh2 {[%clk 0:02:17]}  h5 {[%clk 0:01:15]} 24. Ne3 {[%clk 0:02:17]}  Nc5 {[%clk 0:01:10]} 25. Rfd1 {[%clk 0:02:12]}  Ncxd3 {[%clk 0:01:09]} 26. cxd3 {[%clk 0:02:13]}  Ne6 {[%clk 0:01:04]} 27. Qg3 {[%clk 0:02:07]}  Qf6 {[%clk 0:00:58]} 28. Rf1 {[%clk 0:02:05]}  Qf4 {[%clk 0:00:55]} 29. Rac1 {[%clk 0:02:00]}  Rac8 {[%clk 0:00:50]} 30. axb5 {[%clk 0:01:59]}  axb5 {[%clk 0:00:49]} 31. Rc2 {[%clk 0:01:52]}  Rc7 {[%clk 0:00:44]} 32. Rfc1 {[%clk 0:01:51]}  Rec8 {[%clk 0:00:44]} 33. Bc3 {[%clk 0:01:49]}  Qxg3+ {[%clk 0:00:44]} 34. Kxg3 {[%clk 0:01:49]}  Kg7 {[%clk 0:00:42]} 35. Ba5 {[%clk 0:01:47]}  Ra7 {[%clk 0:00:40]} 36. b4 {[%clk 0:01:47]}  Nd4 {[%clk 0:00:37]} 37. Rb2 {[%clk 0:01:41]}  Rxa5 {[%clk 0:00:30]} 38. bxa5 {[%clk 0:01:39]}  Ba3 {[%clk 0:00:31]} 39. Rcb1 {[%clk 0:01:34]}  Bxb2 {[%clk 0:00:31]} 40. Rxb2 {[%clk 0:01:35]}  Ra8 {[%clk 0:00:30]} 41. Ra2 {[%clk 0:01:34]}  Ra6 {[%clk 0:00:30]} 42. f4 {[%clk 0:01:33]}  exf4+ {[%clk 0:00:29]} 43. Kxf4 {[%clk 0:01:34]}  Nb3 {[%clk 0:00:29]} 44. d4 {[%clk 0:01:30]}  Nxd4 {[%clk 0:00:27]} 45. Ke5 {[%clk 0:01:29]}  Nb3 {[%clk 0:00:27]} 46. Kd6 {[%clk 0:01:29]}  Rxa5 {[%clk 0:00:26]} 47. Rf2 {[%clk 0:01:27]}  Ra6 {[%clk 0:00:24]} 48. e5 {[%clk 0:01:26]}  Nd4 {[%clk 0:00:23]} 49. Kc5 {[%clk 0:01:25]}  Ne6+ {[%clk 0:00:23]} 50. Kb4 {[%clk 0:01:25]}  Ra4+ {[%clk 0:00:23]} 51. Kb3 {[%clk 0:01:25]}  c5 {[%clk 0:00:23]} 52. Nd5 {[%clk 0:01:23]}  c4+ {[%clk 0:00:24]} 53. Kc3 {[%clk 0:01:23]}  Ra3+ {[%clk 0:00:24]} 54. Kb2 {[%clk 0:01:22]}  Rb3+ {[%clk 0:00:24]} 55. Kc2 {[%clk 0:01:22]}  Rd3 {[%clk 0:00:24]} 56. Nb4 {[%clk 0:01:18]}  Nd4+ {[%clk 0:00:24]} 57. Kc1 {[%clk 0:01:17]}  Nb3+ {[%clk 0:00:23]} 58. Kc2 {[%clk 0:01:17]}  Rg3 {[%clk 0:00:21]} 59. Nc6 {[%clk 0:01:16]}  Nc5 {[%clk 0:00:20]} 60. Nd8 {[%clk 0:01:15]}  b4 {[%clk 0:00:19]} 61. Rxf7+ {[%clk 0:01:12]}  Kg8 {[%clk 0:00:20]} 62. Rc7 {[%clk 0:01:13]}  b3+ {[%clk 0:00:20]} 63. Kb2 {[%clk 0:01:12]}  c3+ {[%clk 0:00:19]} 64. Ka3 {[%clk 0:01:11]}  Rxg2 {[%clk 0:00:19]} 65. Rxc5 {[%clk 0:01:07]}  b2 {[%clk 0:00:19]} 66. Ka2 {[%clk 0:01:01]}  Rg1 {[%clk 0:00:19]} 67. Rb5 {[%clk 0:01:01]}  c2 {[%clk 0:00:19]} 68. Kb3 {[%clk 0:01:02]}  c1=Q {[%clk 0:00:19]} 69. Ka4 {[%clk 0:01:02]}  Qc2+ {[%clk 0:00:19]} 70. Ka5 {[%clk 0:01:02]}  b1=Q {[%clk 0:00:18]} 71. Kb6 {[%clk 0:01:02]}  Qxb5+ {[%clk 0:00:18]} 72. Ka7 {[%clk 0:01:03]}  Ra1# {[%clk 0:00:17]} 0-1


[Site "https://www.chess.com"]

[Event "Titled Tuesday Blitz June 27 Early 2023"]
[White "Sanhueza, Cristian"]
[Black "Li, Eric"]
[WhiteFideId "116815"]
[BlackFideId "30939941"]
[WhiteElo "2476"]
[BlackElo "2268"]
[Result "1-0"]
[Round "10"]
[TimeControl "180+2"]
[Date "2023.06.27"]
[WhiteClock "0:01:29"]
[BlackClock "0:01:55"]
[Board "95"]

1. e4 {[%clk 0:03:00]}  c5 {[%clk 0:02:59]} 2. Nf3 {[%clk 0:03:01]}  Nc6 {[%clk 0:02:59]} 3. d4 {[%clk 0:03:01]}  cxd4 {[%clk 0:03:00]} 4. Nxd4 {[%clk 0:03:02]}  g6 {[%clk 0:03:00]} 5. Nc3 {[%clk 0:03:03]}  Bg7 {[%clk 0:03:00]} 6. Be3 {[%clk 0:03:04]}  Nf6 {[%clk 0:03:00]} 7. Bc4 {[%clk 0:03:04]}  Qa5 {[%clk 0:03:00]} 8. O-O {[%clk 0:03:03]}  O-O {[%clk 0:02:59]} 9. Bb3 {[%clk 0:03:03]}  d6 {[%clk 0:02:59]} 10. h3 {[%clk 0:03:03]}  Bd7 {[%clk 0:02:55]} 11. Re1 {[%clk 0:03:03]}  Rac8 {[%clk 0:02:48]} 12. Nd5 {[%clk 0:03:01]}  Rfe8 {[%clk 0:02:47]} 13. Bg5 {[%clk 0:02:57]}  Nxd5 {[%clk 0:02:42]} 14. Nxc6 {[%clk 0:02:54]}  bxc6 {[%clk 0:02:41]} 15. e5 {[%clk 0:02:55]}  dxe5 {[%clk 0:02:38]} 16. c4 {[%clk 0:02:47]}  Nb6 {[%clk 0:02:37]} 17. Bd2 {[%clk 0:02:45]}  Qa6 {[%clk 0:02:37]} 18. Qf3 {[%clk 0:02:38]}  Be6 {[%clk 0:02:35]} 19. c5 {[%clk 0:02:27]}  Nd5 {[%clk 0:02:32]} 20. Rac1 {[%clk 0:02:26]}  Qb7 {[%clk 0:02:28]} 21. h4 {[%clk 0:02:22]}  Nc7 {[%clk 0:02:27]} 22. Bc2 {[%clk 0:02:17]}  Bd5 {[%clk 0:02:26]} 23. Qg3 {[%clk 0:02:17]}  f5 {[%clk 0:02:24]} 24. h5 {[%clk 0:02:17]}  Kf7 {[%clk 0:02:22]} 25. Bc3 {[%clk 0:02:08]}  e4 {[%clk 0:02:20]} 26. Bxg7 {[%clk 0:02:06]}  Kxg7 {[%clk 0:02:21]} 27. Qe5+ {[%clk 0:02:06]}  Kf7 {[%clk 0:02:21]} 28. g4 {[%clk 0:01:52]}  e6 {[%clk 0:02:18]} 29. g5 {[%clk 0:01:48]}  Na8 {[%clk 0:02:12]} 30. Re3 {[%clk 0:01:37]}  Qe7 {[%clk 0:02:07]} 31. hxg6+ {[%clk 0:01:33]}  hxg6 {[%clk 0:02:06]} 32. Rh3 {[%clk 0:01:33]}  Qxg5+ {[%clk 0:02:06]} 33. Kh2 {[%clk 0:01:32]}  Ke7 {[%clk 0:02:00]} 34. Rh7+ {[%clk 0:01:29]}  Kd8 {[%clk 0:01:55]} 35. Qd6# {[%clk 0:01:29]} 1-0


[Site "https://www.chess.com"]

[Event "Titled Tuesday Blitz June 27 Early 2023"]
[White "Ruge, Edison"]
[Black "Herzog2012"]
[WhiteFideId "4401000"]
[WhiteElo "2234"]
[BlackElo "2471"]
[Result "0-1"]
[Round "10"]
[TimeControl "180+2"]
[Date "2023.06.27"]
[WhiteClock "0:00:05"]
[BlackClock "0:00:04"]
[Board "96"]

1. e4 {[%clk 0:03:00]}  c5 {[%clk 0:02:59]} 2. Nf3 {[%clk 0:03:00]}  Nc6 {[%clk 0:03:00]} 3. d3 {[%clk 0:03:01]}  e5 {[%clk 0:02:56]} 4. Nbd2 {[%clk 0:03:02]}  g6 {[%clk 0:02:52]} 5. g3 {[%clk 0:03:02]}  Bg7 {[%clk 0:02:53]} 6. Bg2 {[%clk 0:03:03]}  Nge7 {[%clk 0:02:53]} 7. h4 {[%clk 0:03:04]}  h6 {[%clk 0:02:48]} 8. O-O {[%clk 0:03:01]}  O-O {[%clk 0:02:47]} 9. c3 {[%clk 0:03:02]}  d5 {[%clk 0:02:46]} 10. a3 {[%clk 0:03:02]}  Bg4 {[%clk 0:02:44]} 11. Qc2 {[%clk 0:03:01]}  a5 {[%clk 0:02:14]} 12. Re1 {[%clk 0:03:02]}  d4 {[%clk 0:02:10]} 13. cxd4 {[%clk 0:02:57]}  cxd4 {[%clk 0:02:08]} 14. Qc5 {[%clk 0:02:50]}  Rc8 {[%clk 0:02:03]} 15. Nc4 {[%clk 0:02:49]}  Nb4 {[%clk 0:01:52]} 16. axb4 {[%clk 0:02:43]}  Rxc5 {[%clk 0:01:50]} 17. bxc5 {[%clk 0:02:43]}  Nc6 {[%clk 0:01:44]} 18. Bd2 {[%clk 0:02:40]}  Qe7 {[%clk 0:01:39]} 19. Nxa5 {[%clk 0:02:14]}  Qxc5 {[%clk 0:01:39]} 20. Nxb7 {[%clk 0:02:11]}  Qb5 {[%clk 0:01:32]} 21. Nd6 {[%clk 0:02:05]}  Qxd3 {[%clk 0:01:31]} 22. Ra3 {[%clk 0:01:55]}  Qc2 {[%clk 0:01:25]} 23. Rc1 {[%clk 0:01:36]}  Qxb2 {[%clk 0:01:23]} 24. Nc4 {[%clk 0:01:36]}  Qb8 {[%clk 0:01:09]} 25. Ra6 {[%clk 0:01:35]}  Rc8 {[%clk 0:00:54]} 26. Nb6 {[%clk 0:01:35]}  Qb7 {[%clk 0:00:44]} 27. Nxc8 {[%clk 0:01:35]}  Qxa6 {[%clk 0:00:44]} 28. Rxc6 {[%clk 0:01:35]}  Qe2 {[%clk 0:00:40]} 29. Ne7+ {[%clk 0:01:06]}  Kh7 {[%clk 0:00:39]} 30. Nh2 {[%clk 0:00:48]}  Qd1+ {[%clk 0:00:31]} 31. Nf1 {[%clk 0:00:48]}  Be2 {[%clk 0:00:30]} 32. Bb4 {[%clk 0:00:42]}  d3 {[%clk 0:00:26]} 33. Nd5 {[%clk 0:00:38]}  Qb3 {[%clk 0:00:22]} 34. Bd2 {[%clk 0:00:32]}  Qb2 {[%clk 0:00:18]} 35. Nde3 {[%clk 0:00:31]}  h5 {[%clk 0:00:15]} 36. Rc7 {[%clk 0:00:31]}  Kg8 {[%clk 0:00:15]} 37. Rc8+ {[%clk 0:00:30]}  Kh7 {[%clk 0:00:15]} 38. Rc7 {[%clk 0:00:29]}  Qa2 {[%clk 0:00:16]} 39. Bc3 {[%clk 0:00:26]}  Bh6 {[%clk 0:00:13]} 40. Nd2 {[%clk 0:00:25]}  Bg7 {[%clk 0:00:06]} 41. Nf3 {[%clk 0:00:19]}  f6 {[%clk 0:00:05]} 42. Nxe5 {[%clk 0:00:18]}  fxe5 {[%clk 0:00:04]} 43. Bxe5 {[%clk 0:00:18]}  Qb1+ {[%clk 0:00:03]} 44. Kh2 {[%clk 0:00:17]}  d2 {[%clk 0:00:04]} 45. Rxg7+ {[%clk 0:00:17]}  Kh6 {[%clk 0:00:04]} 46. Rd7 {[%clk 0:00:14]}  d1=Q {[%clk 0:00:02]} 47. Bf4+ {[%clk 0:00:14]}  g5 {[%clk 0:00:03]} 48. Nf5+ {[%clk 0:00:14]}  Kg6 {[%clk 0:00:03]} 49. Rg7+ {[%clk 0:00:11]}  Kf6 {[%clk 0:00:03]} 50. e5+ {[%clk 0:00:09]}  Kxf5 {[%clk 0:00:03]} 51. Rxg5+ {[%clk 0:00:07]}  Ke6 {[%clk 0:00:04]} 52. Bh3+ {[%clk 0:00:07]}  Ke7 {[%clk 0:00:04]} 53. Rg7+ {[%clk 0:00:07]}  Kd8 {[%clk 0:00:04]} 54. Bg5+ {[%clk 0:00:07]}  Ke8 {[%clk 0:00:03]} 55. Re7+ {[%clk 0:00:07]}  Kf8 {[%clk 0:00:04]} 56. Bg2 {[%clk 0:00:05]}  Qg1+ {[%clk 0:00:03]} 57. Kh3 {[%clk 0:00:05]}  Bg4# {[%clk 0:00:04]} 0-1


[Site "https://www.chess.com"]